fUST/lending_fUST_20250825
["ID","MTS","AMOUNT","RATE_DAILY","PERIOD"]
[381272865,1756117836217,-199.0,0.00040482,30]
[381272866,1756117836226,-800.0,0.00040482,7]
[381272867,1756117836235,-2919.75940895,0.00040496,2]
[381272868,1756117836244,-800.0,0.00040514,7]
[381272869,1756117836255,-800.0,0.00040519,7]
[381272870,1756117836265,-500.0,0.00040536,15]
[381272871,1756117836274,-204.10482187,0.00040541,120]
[381272872,1756117836285,-246.36,0.00040541,120]
[381272873,1756117836294,-191.62079981,0.00040541,120]
[381272874,1756117836303,-191.62079981,0.00040541,120]
[381272875,1756117836313,-501.83320199,0.00040544,15]
[381272876,1756117836322,-568.25341172,0.00040547,14]
[381272877,1756117836331,-251.391073,0.0004055,30]
[381272878,1756117836340,-151.0,0.0004055,30]
[381272879,1756117836350,-151.0,0.0004055,30]
[381272880,1756117836359,-151.0,0.0004055,30]
[381272881,1756117836373,-151.0,0.0004055,30]
[381272882,1756117836382,-152.008388,0.0004055,30]
[381272883,1756117836392,-151.0,0.0004055,30]
[381272884,1756117836401,-158.440349,0.0004055,30]
[381272885,1756117836412,-151.0,0.0004055,30]
[381272886,1756117836422,-178.751806,0.0004055,30]
[381272887,1756117836432,-178.751806,0.0004055,30]
[381272888,1756117836442,-178.751806,0.0004055,30]
[381272889,1756117836453,-178.751806,0.0004055,30]
[381272890,1756117836463,-3027.79050709,0.00040551,2]
[381272891,1756117836473,-800.0,0.00040586,7]
[381272892,1756117836482,-49923.34217993,0.00040606,60]
[381272893,1756117836492,-3139.81875585,0.00040606,2]
[381272894,1756117836502,-264.96230179,0.00040607,7]
[381272895,1756117836512,-721.28442655,0.00040615,7]
[381272896,1756117836521,-7963.80803919,0.0004062,2]
[381272897,1756117836531,-185.55425193,0.00040631,3]
[381272898,1756117836540,-151.0,0.00040638,30]
[381272899,1756117836550,-151.0,0.00040638,30]
[381272900,1756117836559,-151.0,0.00040638,30]
[381272901,1756117836570,-151.0,0.00040638,30]
[381272902,1756117836582,-151.0,0.00040638,30]
[381272903,1756117836591,-151.0,0.00040638,30]
[381272904,1756117836601,-151.0,0.00040638,30]
[381272905,1756117836610,-151.0,0.00040638,30]
[381272906,1756117836620,-151.0,0.00040638,30]
[381272907,1756117836630,-151.0,0.00040638,30]
[381272908,1756117836640,-151.0,0.00040638,30]
[381272909,1756117836652,-151.0,0.00040638,30]
[381272910,1756117836671,-151.0,0.00040638,30]
[381272911,1756117836682,-151.0,0.00040638,30]
[381272912,1756117836691,-151.0,0.00040638,30]
[381272913,1756117836701,-151.0,0.00040638,30]
[381272914,1756117836710,-151.0,0.00040638,30]
[381272915,1756117836720,-153.609256,0.00040638,30]
[381272916,1756117836729,-151.0,0.00040638,30]
[381272917,1756117836738,-151.0,0.00040638,30]
[381272918,1756117836747,-151.0,0.00040638,30]
[381272919,1756117836941,-151.0,0.00040638,30]
[381272920,1756117836953,-277.276485,0.00040638,30]
[381272921,1756117836962,-151.0,0.00040638,30]
[381272922,1756117836971,-151.0,0.00040638,30]
[381272923,1756117836980,-151.0,0.00040641,30]
[381272924,1756117836990,-184.862521,0.00040641,30]
[381272925,1756117836999,-151.0,0.00040641,30]
[381272926,1756117837008,-200.0,0.00040641,7]
[381272927,1756117837018,-152.336595,0.00040641,30]
[381272928,1756117837028,-151.0,0.00040641,30]
[381272929,1756117837038,-1000.0,0.00040641,2]
[381272930,1756117837047,-1000.0,0.00040641,2]
[381272931,1756117837056,-1000.0,0.00040641,2]
[381272932,1756117837066,-1000.0,0.00040641,2]
[381272933,1756117837075,-1000.0,0.00040641,2]
[381272934,1756117837085,-1000.0,0.00040641,2]
[381272935,1756117837094,-1000.0,0.00040641,2]
[381272936,1756117837103,-1000.0,0.00040641,2]
[381272937,1756117837113,-1000.0,0.00040641,2]
[381272938,1756117837134,-1000.0,0.00040641,2]
[381272939,1756117837144,-1000.0,0.00040641,2]
[381272940,1756117837155,-1000.0,0.00040641,2]
[381272941,1756117837164,-1000.0,0.00040641,2]
[381272942,1756117837175,-1000.0,0.00040641,2]
[381272943,1756117837185,-936.048982,0.00040641,2]
[381272944,1756117837195,-368.825879,0.00040641,30]
[381272945,1756117837206,-368.825879,0.00040641,30]
[381272946,1756117837216,-368.825879,0.00040641,30]
[381272947,1756117837226,-151.300854,0.00040641,30]
[381272948,1756117837236,-151.300854,0.00040641,30]
[381272949,1756117837247,-173.945457,0.00040641,30]
[381272950,1756117837256,-173.945457,0.00040641,30]
[381272951,1756117837266,-173.945457,0.00040641,30]
[381272952,1756117837276,-151.300854,0.00040641,30]
[381272953,1756117837286,-368.825879,0.00040641,30]
[381272954,1756117837296,-173.945457,0.00040641,30]
[381272955,1756117837306,-151.300854,0.00040641,30]
[381272956,1756117837317,-151.0,0.00040641,30]
[381272957,1756117837327,-151.0,0.00040641,30]
[381272958,1756117837337,-151.0,0.00040641,30]
[381272959,1756117837347,-151.0,0.00040641,30]
[381272960,1756117837357,-154.298147,0.00040641,30]
[381272961,1756117837370,-213.833915,0.00040641,30]
[381272962,1756117837380,-151.0,0.00040641,30]
[381272963,1756117837391,-151.0,0.00040641,30]
[381272964,1756117837401,-151.0,0.00040641,30]
[381272965,1756117837412,-190.065225,0.00040641,30]
[381272966,1756117837422,-190.065225,0.00040641,30]
[381272967,1756117837432,-298.08186,0.00040641,30]
[381272968,1756117837442,-190.065225,0.00040641,30]
[381272969,1756117837452,-298.08186,0.00040641,30]
[381272970,1756117837462,-190.065225,0.00040641,30]
[381272971,1756117837471,-298.08186,0.00040641,30]
[381272972,1756117837481,-298.08186,0.00040641,30]
[381272973,1756117837491,-151.0,0.00040651,30]
[381272974,1756117837500,-151.0,0.00040651,30]
[381272975,1756117837510,-151.0,0.00040651,30]
[381272976,1756117837520,-3255.99204981,0.00040661,2]
[381272977,1756117837530,-529.29072822,0.00040661,7]
[381272978,1756117837540,-151.0,0.00040679,30]
[381272979,1756117837550,-151.0,0.00040679,30]
[381272980,1756117837560,-151.0,0.00040679,30]
[381272981,1756117837570,-151.0,0.00040679,14]
[381272982,1756117837581,-151.0,0.00040679,30]
[381272983,1756117837590,-151.0,0.00040679,30]
[381272984,1756117837601,-151.0,0.00040679,30]
[381272985,1756117837611,-151.0,0.00040679,30]
[381272986,1756117837620,-800.0,0.00040682,7]
[381272987,1756117837630,-185.55425193,0.00040696,3]
[381272988,1756117837640,-3376.46375566,0.00040716,2]
[381272989,1756117837650,-3501.39291462,0.00040771,2]
[381272990,1756117837660,-150.0,0.000408,120]
[381272991,1756117837670,-191.325862,0.000408,2]
[381272992,1756117837681,-2862.84826696,0.00040826,2]
[381272993,1756117837690,-152.392532,0.00040841,30]
[381272994,1756117837700,-151.0,0.00040841,30]
[381272995,1756117837711,-151.0,0.00040841,30]
[381272996,1756117837721,-151.0,0.00040841,30]
[381272997,1756117837731,-151.501775,0.00040841,30]
[381272998,1756117837742,-151.0,0.00040841,30]
[381272999,1756117837752,-151.0,0.00040841,30]
[381273000,1756117837762,-151.0,0.00040841,30]
[381273001,1756117837772,-151.0,0.00040841,15]
[381273002,1756117837783,-151.0,0.00040841,30]
[381273003,1756117837793,-263.089244,0.00040841,15]
[381273004,1756117837803,-151.0,0.00040841,30]
[381273005,1756117837813,-151.0,0.0004085,30]
[381273006,1756117837823,-151.0,0.0004085,30]
[381273007,1756117837833,-152.708308,0.0004085,30]
[381273008,1756117837843,-151.0,0.0004085,30]
[381273009,1756117837853,-178.751806,0.0004085,30]
[381273010,1756117837863,-178.751806,0.0004085,30]
[381273011,1756117837873,-178.751806,0.0004085,30]
[381273012,1756117837882,-178.751806,0.0004085,30]
[381273013,1756117837892,-151.0,0.0004086,30]
[381273014,1756117837901,-151.0,0.0004086,30]
[381273015,1756117837911,-152.602771,0.0004086,30]
[381273016,1756117837921,-151.0,0.0004086,30]
[381273017,1756117837931,-151.0,0.0004086,30]
[381273018,1756117837941,-151.0,0.0004086,30]
[381273019,1756117837951,-151.0,0.0004086,30]
[381273020,1756117837962,-151.0,0.0004086,15]
[381273021,1756117837971,-151.0,0.0004086,30]
[381273022,1756117837981,-151.0,0.0004086,30]
[381273023,1756117837990,-154.255539,0.0004086,30]
[381273024,1756117838000,-151.0,0.0004086,30]
[381273026,1756117838010,-151.0,0.0004086,30]
[381273028,1756117838020,-152.175132,0.0004086,14]
[381273030,1756117838030,-151.0,0.0004086,30]
[381273032,1756117838039,-151.0,0.0004086,30]
[381273034,1756117838049,-151.0,0.0004086,30]
[381273036,1756117838059,-151.0,0.0004086,30]
[381273037,1756117838068,-151.0,0.0004086,30]
[381273038,1756117838080,-151.0,0.0004086,30]
[381273039,1756117838089,-151.0,0.0004086,30]
[381273040,1756117838099,-151.0,0.0004086,30]
[381273041,1756117838109,-151.0,0.0004086,30]
[381273042,1756117838119,-151.0,0.0004086,30]
[381273043,1756117838128,-199.613882,0.0004086,30]
[381273044,1756117838138,-151.0,0.0004086,30]
[381273045,1756117838148,-151.0,0.0004086,30]
[381273046,1756117838158,-151.0,0.0004086,30]
[381273047,1756117838167,-151.0,0.0004086,30]
[381273048,1756117838177,-151.0,0.0004086,30]
[381273051,1756117838191,-151.0,0.0004086,30]
[381273052,1756117838201,-151.0,0.0004086,30]
[381273054,1756117838210,-151.0,0.0004086,30]
[381273055,1756117838220,-151.0,0.0004086,30]
[381273056,1756117838230,-151.0,0.0004086,30]
[381273058,1756117838241,-151.0,0.0004086,30]
[381273059,1756117838250,-151.0,0.0004086,30]
[381273060,1756117838260,-151.0,0.0004086,30]
[381273061,1756117838270,-151.0,0.0004086,30]
[381273062,1756117838280,-151.0,0.0004086,30]
[381273063,1756117838289,-151.0,0.0004086,30]
[381273064,1756117838299,-232.4766599,0.0004089,3]
[381273065,1756117838309,-151.0,0.0004089,30]
[381273066,1756117838319,-151.0,0.0004089,30]
[381273067,1756117838329,-151.0,0.0004089,30]
[381273068,1756117838339,-178.751806,0.0004089,30]
[381273069,1756117838348,-178.751806,0.0004089,30]
[381273070,1756117838358,-178.751806,0.0004089,30]
[381273071,1756117838371,-178.751806,0.0004089,30]
[381273072,1756117838381,-180.89,0.000409,7]
[381273073,1756117838391,-151.0,0.000409,12]
[381273074,1756117838400,-1433.175442,0.000409,14]
[381273075,1756117838411,-368.825879,0.000409,30]
[381273076,1756117838420,-368.825879,0.000409,30]
[381273077,1756117838430,-151.300854,0.000409,30]
[381273078,1756117838439,-151.300854,0.000409,30]
[381273079,1756117838451,-173.945457,0.000409,30]
[381273080,1756117838461,-173.945457,0.000409,30]
[381273081,1756117838471,-368.825879,0.000409,30]
[381273082,1756117838481,-173.945457,0.000409,30]
[381273083,1756117838490,-151.300854,0.000409,30]
[381273084,1756117838500,-368.825879,0.000409,30]
[381273085,1756117838510,-173.945457,0.000409,30]
[381273086,1756117838519,-151.300854,0.000409,30]
[381273087,1756117838528,-151.0,0.000409,30]
[381273088,1756117838538,-151.0,0.000409,30]
[381273089,1756117838547,-1000.0,0.0004092,14]
[381273090,1756117838557,-151.0,0.00040926,30]
[381273091,1756117838567,-151.0,0.00040926,30]
[381273092,1756117838577,-151.0,0.00040926,30]
[381273093,1756117838586,-151.0,0.00040926,30]
[381273094,1756117838596,-151.0,0.00040926,30]
[381273095,1756117838605,-190.065225,0.00040926,30]
[381273096,1756117838614,-190.065225,0.00040926,30]
[381273097,1756117838624,-298.08186,0.00040926,30]
[381273098,1756117838634,-190.065225,0.00040926,30]
[381273099,1756117838643,-298.08186,0.00040926,30]
[381273100,1756117838653,-190.065221,0.00040926,30]
[381273101,1756117838662,-298.08186,0.00040926,30]
[381273102,1756117838672,-298.08186,0.00040926,30]
[381273103,1756117838681,-185.55425193,0.0004093,3]
[381273104,1756117838691,-151.0,0.0004094,30]
[381273105,1756117838701,-151.0,0.0004094,30]
[381273106,1756117838711,-151.0,0.0004094,30]
[381273107,1756117838720,-1000.0,0.0004094,14]
[381273108,1756117838729,-151.0,0.0004095,30]
[381273109,1756117838738,-151.0,0.0004095,30]
[381273110,1756117838748,-151.0,0.0004095,30]
[381273111,1756117838758,-151.0,0.0004095,30]
[381273112,1756117838767,-151.0,0.0004095,30]
[381273113,1756117838777,-151.0,0.0004095,30]
[381273114,1756117838786,-151.0,0.0004095,30]
[381273115,1756117838795,-151.0,0.0004095,30]
[381273116,1756117838804,-151.0,0.0004095,30]
[381273117,1756117838814,-151.0,0.0004095,15]
[381273118,1756117838823,-151.0,0.0004095,30]
[381273119,1756117838832,-151.0,0.0004095,30]
[381273120,1756117838842,-151.0,0.0004095,30]
[381273121,1756117838851,-151.0,0.0004095,30]
[381273122,1756117838861,-151.0,0.0004095,30]
[381273123,1756117838871,-151.0,0.0004095,30]
[381273124,1756117838881,-151.0,0.0004095,30]
[381273125,1756117838891,-151.0,0.0004095,30]
[381273126,1756117838900,-178.751806,0.0004095,30]
[381273127,1756117838909,-178.751806,0.0004095,30]
[381273128,1756117838918,-178.751806,0.0004095,30]
[381273129,1756117838928,-178.751806,0.0004095,30]
[381273130,1756117838937,-185.55425193,0.0004095,3]
[381273131,1756117838947,-151.0,0.0004096,30]
[381273132,1756117838957,-151.0,0.0004096,30]
[381273133,1756117838966,-151.0,0.0004096,30]
[381273134,1756117838975,-151.0,0.0004096,30]
[381273135,1756117838984,-163.284195,0.0004096,30]
[381273136,1756117838994,-151.0,0.0004096,30]
[381273137,1756117839004,-214.411713,0.0004096,30]
[381273138,1756117839014,-151.0,0.0004096,30]
[381273139,1756117839023,-151.0,0.0004096,15]
[381273140,1756117839033,-151.0,0.0004096,30]
[381273141,1756117839042,-151.0,0.0004096,30]
[381273142,1756117839051,-151.0,0.0004096,30]
[381273143,1756117839061,-1000.0,0.0004096,14]
[381273144,1756117839070,-151.0,0.0004096,30]
[381273145,1756117839080,-151.0,0.0004096,30]
[381273146,1756117839089,-151.0,0.0004096,30]
[381273147,1756117839099,-178.751806,0.0004096,30]
[381273148,1756117839108,-178.751806,0.0004096,30]
[381273149,1756117839118,-178.751806,0.0004096,30]
[381273150,1756117839127,-178.751798,0.0004096,30]
[381273151,1756117839137,-151.0,0.0004096,30]
[381273152,1756117839147,-151.0,0.0004096,30]
[381273153,1756117839156,-256.892,0.0004096,30]
[381273154,1756117839166,-151.0,0.0004096,30]
[381273155,1756117839176,-151.0,0.0004096,30]
[381273156,1756117839185,-151.0,0.0004096,30]
[381273157,1756117839196,-151.0,0.0004096,30]
[381273158,1756117839207,-151.0,0.0004096,30]
[381273159,1756117839218,-151.0,0.0004096,30]
[381273160,1756117839227,-151.0,0.0004096,30]
[381273161,1756117839237,-151.0,0.0004096,30]
[381273162,1756117839246,-151.0,0.0004096,30]
[381273163,1756117839256,-151.0,0.0004096,30]
[381273164,1756117839268,-151.0,0.0004096,30]
[381273165,1756117839278,-151.0,0.0004096,30]
[381273166,1756117839288,-151.0,0.0004096,30]
[381273167,1756117839298,-151.0,0.0004096,30]
[381273168,1756117839307,-151.0,0.0004096,30]
[381273169,1756117839316,-151.0,0.0004096,30]
[381273170,1756117839325,-151.0,0.0004096,30]
[381273171,1756117839335,-151.0,0.0004096,30]
[381273172,1756117839345,-151.0,0.0004096,30]
[381273173,1756117839355,-264.546196,0.0004096,30]
[381273174,1756117839367,-368.825879,0.0004096,30]
[381273175,1756117839382,-368.825879,0.0004096,30]
[381273176,1756117839391,-151.300854,0.0004096,30]
[381273177,1756117839401,-173.945457,0.0004096,30]
[381273178,1756117839413,-173.945457,0.0004096,30]
[381273179,1756117839423,-151.300854,0.0004096,30]
[381273180,1756117839434,-368.825879,0.0004096,30]
[381273181,1756117839444,-173.945457,0.0004096,30]
[381273182,1756117839454,-151.300854,0.0004096,30]
[381273183,1756117839464,-368.825883,0.0004096,30]
[381273184,1756117839473,-173.945457,0.0004096,30]
[381273186,1756117839482,-151.300846,0.0004096,30]
[381273187,1756117839492,-153.430594,0.0004096,30]
[381273188,1756117839501,-151.0,0.0004096,30]
[381273189,1756117839510,-207317.60031593,0.0004096,120]
[381273191,1756117839520,-1000.0,0.0004098,14]
[381273192,1756117839529,-1143.699577,0.0004098,14]
[381273193,1756117839539,-7549.89668127,0.00040995,2]
[381273194,1756117839548,-7963.80803919,0.00040995,2]
[381273195,1756117839558,-1000.0,0.00040995,2]
[381273196,1756117839568,-204.1,0.00040995,120]
[381273197,1756117839577,-191.62,0.00040995,120]
[381273198,1756117839588,-5010.49,0.00041,14]
[381273200,1756117839598,-1000.0,0.00041,120]
[381273202,1756117839608,-151.0,0.00041,11]
[381273203,1756117839617,-1488.66,0.00041,7]
[381273205,1756117839626,-1000.0,0.00041,14]
[381273207,1756117839636,-1000.0,0.00041,14]
[381273209,1756117839645,-1502.275449,0.00041,34]
[381273211,1756117839655,-200.0,0.00041047,120]
[381273213,1756117839664,-281.17593498,0.00041073,5]
[381273215,1756117839674,-502.74054046,0.00041073,2]
[381273217,1756117839683,-444.95264381,0.00041073,5]
[381273219,1756117839692,-507.70849922,0.00041073,5]
[381273221,1756117839702,-637.29739791,0.00041073,5]
[381273223,1756117839713,-500.0,0.00041073,5]
[381273225,1756117839722,-500.0,0.00041073,5]
[381273227,1756117839733,-502.18374054,0.00041073,5]
[381273229,1756117839742,-500.0,0.00041073,5]
[381273231,1756117839751,-280.60520724,0.00041073,5]
[381273233,1756117839761,-500.0,0.00041073,5]
[381273235,1756117839771,-199.64761663,0.00041073,5]
[381273237,1756117839780,-500.0,0.00041073,5]
[381273239,1756117839790,-151.0,0.00041085,30]
[381273241,1756117839799,-151.0,0.00041085,30]
[381273243,1756117839809,-151.0,0.00041085,30]
[381273245,1756117839819,-151.0,0.00041085,30]
[381273247,1756117839828,-165.290678,0.00041085,30]
[381273249,1756117839839,-151.0,0.00041085,30]
[381273252,1756117839849,-151.0,0.00041085,15]
[381273254,1756117839859,-151.0,0.00041085,30]
[381273256,1756117839869,-151.0,0.00041085,30]
[381273258,1756117839879,-151.0,0.00041085,30]
[381273260,1756117839891,-844.86965257,0.00041085,3]
[381273262,1756117839900,-844.86965257,0.00041095,30]
[381273264,1756117839910,-480.0,0.00041095,120]
[381273266,1756117839919,-480.0,0.00041095,30]
[381273268,1756117839929,-480.0,0.00041095,30]
[381273270,1756117839938,-480.0,0.00041095,30]
[381273272,1756117839948,-480.0,0.00041095,30]
[381273274,1756117839959,-480.0,0.00041095,30]
[381273276,1756117839969,-480.0,0.00041095,30]
[381273278,1756117839978,-480.0,0.00041095,30]
[381273279,1756117839988,-480.0,0.00041095,30]
[381273280,1756117839998,-480.0,0.00041095,30]
[381273281,1756117840007,-780.24,0.00041095,30]
[381273282,1756117840017,-480.0,0.00041095,30]
[381273284,1756117840026,-480.0,0.00041095,30]
[381273286,1756117840036,-480.0,0.00041095,30]
[381273288,1756117840046,-671.28,0.00041095,30]
[381273290,1756117840055,-480.0,0.00041095,30]
[381273292,1756117840064,-480.0,0.00041095,30]
[381273293,1756117840073,-480.0,0.00041095,30]
[381273295,1756117840084,-480.0,0.00041095,30]
[381273296,1756117840093,-480.0,0.00041095,30]
[381273297,1756117840104,-480.0,0.00041095,30]
[381273298,1756117840113,-480.0,0.00041095,30]
[381273300,1756117840123,-480.0,0.00041095,30]
[381273301,1756117840133,-558.17,0.00041095,30]
[381273302,1756117840142,-480.0,0.00041095,30]
[381273303,1756117840152,-480.0,0.00041095,30]
[381273305,1756117840359,-480.0,0.00041095,30]
[381273306,1756117840374,-480.0,0.00041095,30]
[381273307,1756117840384,-480.0,0.00041095,30]
[381273308,1756117840394,-460.25256797,0.00041095,30]
[381273309,1756117840403,-480.0,0.00041095,30]
[381273310,1756117840415,-606.29074976,0.00041095,30]
[381273311,1756117840425,-480.0,0.00041095,30]
[381273312,1756117840435,-480.0,0.00041095,30]
[381273313,1756117840446,-480.0,0.00041095,30]
[381273314,1756117840458,-480.0,0.00041095,30]
[381273315,1756117840468,-484.51,0.00041095,30]
[381273316,1756117840477,-481.37,0.00041095,30]
[381273317,1756117840487,-480.0,0.00041095,30]
[381273318,1756117840496,-480.0,0.00041095,30]
[381273319,1756117840506,-480.0,0.00041095,30]
[381273320,1756117840516,-480.0,0.00041095,30]
[381273321,1756117840525,-480.0,0.00041095,30]
[381273322,1756117840535,-3429.13,0.00041095,30]
[381273323,1756117840544,-2532.72,0.00041095,30]
[381273324,1756117840554,-480.0,0.00041095,30]
[381273325,1756117840564,-480.0,0.00041095,30]
[381273326,1756117840573,-480.0,0.00041095,30]
[381273327,1756117840583,-480.0,0.00041095,30]
[381273329,1756117840592,-1048.64,0.00041095,30]
[381273331,1756117840601,-480.0,0.00041095,30]
[381273333,1756117840611,-730.95,0.00041095,30]
[381273334,1756117840620,-701.8,0.00041095,30]
[381273335,1756117840630,-480.0,0.00041095,20]
[381273337,1756117840639,-480.0,0.00041095,30]
[381273339,1756117840649,-480.0,0.00041095,30]
[381273341,1756117840658,-761.56,0.00041095,30]
[381273342,1756117840668,-529.25990432,0.00041095,30]
[381273343,1756117840677,-480.0,0.00041095,30]
[381273344,1756117840687,-931.74,0.00041095,30]
[381273345,1756117840696,-617.11,0.00041095,30]
[381273346,1756117840706,-542.59,0.00041095,30]
[381273347,1756117840716,-460.35405978,0.00041095,30]
[381273348,1756117840726,-480.0,0.00041095,30]
[381273349,1756117840735,-548.11,0.00041095,30]
[381273350,1756117840745,-480.0,0.00041095,30]
[381273351,1756117840754,-633.62,0.00041095,30]
[381273352,1756117840764,-605.58,0.00041095,30]
[381273353,1756117840774,-659.05,0.00041095,30]
[381273354,1756117840783,-659.05,0.00041095,30]
[381273355,1756117840793,-659.05,0.00041095,30]
[381273356,1756117840802,-659.05,0.00041095,30]
[381273357,1756117840811,-659.05,0.00041095,30]
[381273358,1756117840821,-659.05,0.00041095,30]
[381273359,1756117840830,-718.93,0.00041095,30]
[381273360,1756117840840,-659.05,0.00041095,30]
[381273361,1756117840849,-956.79,0.00041095,30]
[381273362,1756117840858,-659.05,0.00041095,30]
[381273363,1756117840868,-659.05,0.00041095,30]
[381273364,1756117840878,-659.05,0.00041095,30]
[381273365,1756117840887,-659.05,0.00041095,30]
[381273366,1756117840897,-1091.5,0.00041095,30]
[381273367,1756117840906,-659.05,0.00041095,30]
[381273368,1756117840915,-659.05,0.00041095,30]
[381273369,1756117840925,-659.05,0.00041095,30]
[381273370,1756117840935,-659.05,0.00041095,30]
[381273371,1756117840944,-659.05,0.00041095,30]
[381273372,1756117840953,-659.05,0.00041095,30]
[381273373,1756117840963,-659.05,0.00041095,30]
[381273374,1756117840971,-659.05,0.00041095,30]
[381273375,1756117840981,-659.05,0.00041095,30]
[381273376,1756117840990,-659.05,0.00041095,30]
[381273377,1756117840999,-659.05,0.00041095,30]
[381273378,1756117841009,-659.05,0.00041095,30]
[381273379,1756117841019,-659.20986842,0.00041095,30]
[381273380,1756117841028,-480.0,0.00041095,30]
[381273381,1756117841037,-480.0,0.00041095,30]
[381273382,1756117841047,-512.36,0.00041095,30]
[381273383,1756117841056,-480.0,0.00041095,30]
[381273384,1756117841066,-480.0,0.00041095,30]
[381273385,1756117841075,-190.893212,0.00041095,30]
[381273386,1756117841084,-959.4,0.00041095,30]
[381273387,1756117841093,-516.66,0.00041095,30]
[381273388,1756117841103,-630.99,0.00041095,30]
[381273389,1756117841112,-480.0,0.00041095,30]
[381273390,1756117841121,-480.0,0.00041095,2]
[381273391,1756117841130,-480.0,0.00041095,30]
[381273392,1756117841139,-480.0,0.00041095,30]
[381273393,1756117841149,-341.63959606,0.00041095,30]
[381273394,1756117841159,-480.0,0.00041095,30]
[381273395,1756117841169,-480.0,0.00041095,30]
[381273396,1756117841179,-615.86947239,0.00041095,30]
[381273397,1756117841188,-480.0,0.00041095,30]
[381273398,1756117841198,-480.0,0.00041095,30]
[381273399,1756117841209,-480.0,0.00041095,30]
[381273400,1756117841218,-1412.48,0.00041095,30]
[381273401,1756117841228,-480.0,0.00041095,30]
[381273402,1756117841238,-303.63914254,0.00041095,30]
[381273403,1756117841247,-480.0,0.00041095,30]
[381273404,1756117841256,-480.0,0.00041095,30]
[381273405,1756117841265,-1159.53,0.00041095,30]
[381273406,1756117841275,-480.0,0.00041095,30]
[381273407,1756117841284,-480.0,0.00041095,30]
[381273408,1756117841294,-480.644988,0.00041095,30]
[381273409,1756117841303,-480.71691963,0.00041095,14]
[381273410,1756117841313,-2103.18,0.00041095,30]
[381273411,1756117841322,-480.0,0.00041095,30]
[381273412,1756117841332,-480.0,0.00041095,30]
[381273413,1756117841341,-480.0,0.00041095,30]
[381273414,1756117841351,-480.0,0.00041095,30]
[381273415,1756117841361,-480.0,0.00041095,30]
[381273416,1756117841373,-596.62,0.00041095,30]
[381273417,1756117841383,-480.0,0.00041095,30]
[381273418,1756117841392,-480.0,0.00041095,30]
[381273419,1756117841401,-1217.74,0.00041095,30]
[381273420,1756117841411,-975.35,0.00041095,30]
[381273421,1756117841420,-480.0,0.00041095,30]
[381273422,1756117841430,-714.59,0.00041095,30]
[381273423,1756117841439,-962.87,0.00041095,30]
[381273424,1756117841451,-186.50004816,0.00041095,30]
[381273425,1756117841463,-480.0,0.00041095,30]
[381273426,1756117841472,-460.66208555,0.00041095,30]
[381273427,1756117841482,-898.86,0.00041095,30]
[381273428,1756117841491,-480.0,0.00041095,30]
[381273429,1756117841501,-480.37394283,0.00041095,30]
[381273430,1756117841510,-480.0,0.00041095,30]